fUSD/lending_fUSD_20251123
["ID","MTS","AMOUNT","RATE_DAILY","PERIOD"]
[394770715,1763933432412,-410.433,0.00019515,2]
[394770716,1763933432423,-62.567,0.00019515,2]
[394770717,1763933432434,-299.81444444,0.00022481,2]
[394770718,1763933432443,-413.0,0.00022814,2]
[394770719,1763933432451,-210.0,0.00023003,2]
[394770720,1763933432461,-1013.18877702,0.00024,2]
[394770721,1763933432469,-176.81204977,0.00024211,2]
[394770722,1763933432479,-1250.37870014,0.00024211,2]
[394770723,1763933432499,-19943.65925009,0.00024211,2]
[394770724,1763933432508,-592.90774333,0.0002465,2]
[394770725,1763933432517,-3090.0,0.00024676,2]
[394770726,1763933432526,-1103.17474068,0.00025,2]
[394770727,1763933432536,-205.53666149,0.00025,2]
[394770728,1763933432545,-1767.73206127,0.00025,2]
[394770729,1763933432554,-190.93242951,0.00025,2]
[394770730,1763933432565,-360.0,0.00025,2]
[394770731,1763933432574,-3014.99090652,0.00025,2]
[394770732,1763933432583,-1096.0,0.00025028,2]
[394770733,1763933432593,-20140.92108275,0.00025879,2]
[394770734,1763933432602,-4480.83303238,0.00026,2]
[394770735,1763933432611,-1096.0,0.00026345,2]
[394770736,1763933432619,-27229.38275045,0.000264,2]
[394770737,1763933432628,-473.78,0.00026676,2]
[394770738,1763933432637,-4838.68,0.0002699,2]
[394770739,1763933432646,-250.0,0.00027,2]
[394770740,1763933432658,-1023.80737343,0.00027,2]
[394770741,1763933432668,-530.0,0.00027,2]
[394770742,1763933432679,-596.46237665,0.0002739,2]
[394770743,1763933432691,-1096.0,0.00027732,5]
[394770744,1763933432703,-2759.74782242,0.00028,60]
[394770745,1763933432714,-1096.0,0.00029118,5]
[394770746,1763933432725,-194.29394958,0.00030423,2]
[394770747,1763933432738,-1096.0,0.00030574,5]
[394770748,1763933432754,-5000.0,0.00030597,2]
[394770749,1763933432764,-1000.0,0.00030991,2]
[394770750,1763933432774,-1500.0,0.00031013,120]
[394770751,1763933432784,-1096.0,0.00032103,5]
[394770752,1763933432795,-473.78,0.00033165,2]
[394770753,1763933432806,-4650.0,0.000334,5]
[394770754,1763933432817,-1144.00161789,0.00034532,2]
[394770755,1763933432831,-8507.94838211,0.00034532,2]
[394770756,1763933432841,-500.0,0.00034955,2]
[394770757,1763933432852,-896.74,0.00035328,2]
[394770758,1763933432867,-151.0,0.00035415,2]
[394770759,1763933432877,-151.0,0.00035415,2]
[394770760,1763933432888,-151.0,0.00035415,2]
[394770761,1763933432899,-151.0,0.00035415,2]
[394770762,1763933432910,-285.24487916,0.00035415,2]
[394770763,1763933432921,-5146.81,0.00035436,2]
[394770764,1763933432931,-200.0,0.00035484,2]
[394770765,1763933432942,-185.14866466,0.00035753,7]
[394770766,1763933432952,-150.0,0.00035753,7]
[394770767,1763933432963,-150.0,0.00035753,7]
[394770768,1763933432973,-209.44855313,0.00035753,7]
[394770769,1763933432983,-150.0,0.00035753,7]
[394770770,1763933432992,-150.0,0.00035753,7]
[394770771,1763933433002,-150.0,0.00035753,7]
[394770772,1763933433012,-245.97209231,0.00035753,7]
[394770773,1763933433023,-150.0,0.00035753,7]
[394770774,1763933433033,-150.0,0.00035753,7]
[394770775,1763933433043,-150.00000001,0.00035753,7]
[394770776,1763933433053,-150.0,0.00035753,7]
[394770777,1763933433064,-150.0,0.00035753,7]
[394770778,1763933433074,-150.0,0.00035753,7]
[394770779,1763933433084,-2008.60384729,0.00036235,2]
[394770780,1763933433098,-717.044553,0.00036235,2]
[394770781,1763933433111,-603.01159971,0.00036235,2]
[394770782,1763933433122,-2751.0,0.00036291,120]
[394770783,1763933433132,-883.49,0.00036291,5]
[394770784,1763933433143,-871.15,0.00036291,5]
[394770785,1763933433154,-869.74,0.00036291,5]
[394770786,1763933433165,-499.84706179,0.00036291,5]
[394770787,1763933433176,-171.46,0.00036512,2]
[394770788,1763933433187,-1080.61,0.00036949,2]
[394770789,1763933433196,-150.0,0.00036949,2]
[394770790,1763933433207,-191.16,0.00037071,120]
[394770791,1763933433218,-1187.5,0.00037257,2]
[394770792,1763933433230,-153.0,0.00037329,2]
[394770793,1763933433240,-153.0,0.00037332,2]
[394770794,1763933433250,-153.0,0.00037335,2]
[394770795,1763933433261,-800.50753081,0.00037366,2]
[394770799,1763933437947,-374.0,0.00019554,2]
[394770800,1763933437958,-301.80045172,0.00019593,2]
[394770801,1763933437969,-199.49246919,0.00037366,2]
[394770802,1763933437979,-1592.88068529,0.00037367,48]
[394770803,1763933437990,-1077.30901779,0.00037367,48]
[394770804,1763933438007,-248.88929692,0.00037367,48]
[394770805,1763933438017,-195.212,0.00037367,48]
[394770806,1763933438027,-1601.0,0.00037731,2]
[394770807,1763933438037,-822.0,0.00037731,2]
[394770808,1763933438059,-659.0,0.00037731,2]
[394770809,1763933438070,-1256.0,0.00037731,2]
[394770810,1763933438082,-908.0,0.00037731,2]
[394770811,1763933438094,-1192.0,0.00037731,2]
[394770812,1763933438105,-150.0,0.0003774,7]
[394770813,1763933438117,-244.27,0.00037868,2]
[394770814,1763933438129,-150.0,0.00038075,2]
[394770815,1763933438140,-2500.0,0.00038156,2]
[394770816,1763933438151,-4298.5689223,0.00038156,2]
[394770817,1763933438162,-210.40136351,0.00038246,4]
[394770818,1763933438173,-204.9643757,0.00038255,15]
[394770819,1763933438184,-500.0,0.00038255,15]
[394770821,1763933438195,-500.0,0.00038255,15]
[394770823,1763933438205,-500.0,0.00038255,15]
[394770824,1763933438215,-500.0,0.00038255,15]
[394770825,1763933438226,-500.0,0.00038255,15]
[394770826,1763933438237,-500.0,0.00038255,15]
[394770827,1763933438247,-500.0,0.00038255,15]
[394770828,1763933438258,-232.3622538,0.00038255,15]
[394770829,1763933438269,-500.0,0.00038255,15]
[394770830,1763933438279,-500.0,0.00038255,15]
[394770831,1763933438290,-500.0,0.00038255,15]
[394770832,1763933438300,-500.0,0.00038255,15]
[394770833,1763933438311,-500.0,0.00038255,15]
[394770834,1763933438322,-1500.97159811,0.00038256,2]
[394770835,1763933438336,-1510.0,0.00038256,2]
[394770836,1763933438349,-1069.39970189,0.00038256,2]
[394770837,1763933438360,-6034.52826959,0.00038256,2]
[394770838,1763933438372,-3048.70899678,0.00038256,2]
[394770840,1763933440047,-1801.47668218,0.00038256,2]
[394770841,1763933440104,-1865.2,0.00038256,2]
[394770842,1763933440117,-60921.92825145,0.00038256,2]
[394770843,1763933440127,-654.38098086,0.00038256,2]
[394770844,1763933440139,-420.80272702,0.00038346,4]
[394770845,1763933440154,-887.8,0.00038356,5]
[394770846,1763933440166,-500.0,0.00038356,8]
[394770847,1763933440177,-506.62920117,0.00038356,8]
[394770848,1763933440188,-500.0,0.00038356,8]
[394770849,1763933440198,-500.0,0.00038356,8]
[394770850,1763933440209,-500.0,0.00038356,8]
[394770851,1763933440220,-500.0,0.00038356,8]
[394770852,1763933440231,-500.0,0.00038356,8]
[394770853,1763933440243,-500.0,0.00038356,8]
[394770854,1763933440254,-500.0,0.00038356,8]
[394770855,1763933440266,-500.0,0.00038356,8]
[394770856,1763933440278,-555.02843165,0.00038356,8]
[394770857,1763933440289,-500.0,0.00038356,8]
[394770858,1763933440300,-624.9708388,0.00038356,2]
[394770859,1763933440313,-500.0,0.00038356,8]
[394770860,1763933440328,-500.0,0.00038356,8]
[394770861,1763933440340,-404.88567991,0.00038356,8]
[394770862,1763933440350,-500.0,0.00038356,8]
[394770863,1763933440361,-500.0,0.00038356,8]
[394770864,1763933440371,-500.0,0.00038356,8]
[394770865,1763933440383,-500.0,0.00038356,8]
[394770866,1763933440393,-502.92456939,0.00038356,8]
[394770867,1763933440403,-500.0,0.00038356,8]
[394770868,1763933440413,-500.0,0.00038356,8]
[394770869,1763933440423,-500.0,0.00038356,8]
[394770870,1763933440433,-500.0,0.00038356,8]
[394770871,1763933440444,-500.0,0.00038356,8]
[394770872,1763933440454,-500.0,0.00038356,8]
[394770873,1763933440464,-500.0,0.00038356,8]
[394770874,1763933440474,-500.0,0.00038356,8]
[394770875,1763933440484,-500.0,0.00038356,8]
[394770876,1763933440495,-500.0,0.00038356,8]
[394770878,1763933440505,-500.0,0.00038356,8]
[394770880,1763933440519,-500.0,0.00038356,8]
[394770883,1763933440529,-500.0,0.00038356,8]
[394770885,1763933440540,-500.0,0.00038356,8]
[394770887,1763933440550,-500.0,0.00038356,8]
[394770889,1763933440560,-500.0,0.00038356,8]
[394770891,1763933440571,-500.0,0.00038356,8]
[394770893,1763933440581,-500.0,0.00038356,8]
[394770895,1763933440591,-500.0,0.00038356,8]
[394770898,1763933440601,-500.0,0.00038356,8]
[394770900,1763933440612,-500.0,0.00038356,8]
[394770902,1763933440622,-500.0,0.00038356,8]
[394770904,1763933440632,-427.3828348,0.00038356,8]
[394770906,1763933440643,-262.90821112,0.00038356,8]
[394770907,1763933440652,-500.0,0.00038356,8]
[394770908,1763933440662,-500.0,0.00038356,8]
[394770909,1763933440672,-500.0,0.00038356,8]
[394770910,1763933440682,-500.0,0.00038356,2]
[394770911,1763933440693,-551.61,0.00038356,8]
[394770912,1763933440705,-500.0,0.00038356,8]
[394770913,1763933440715,-500.0,0.00038356,8]
[394770914,1763933440726,-263.84208066,0.00038356,8]
[394770915,1763933440736,-500.0,0.00038356,8]
[394770916,1763933440746,-500.0,0.00038356,8]
[394770917,1763933440755,-500.0,0.00038356,8]
[394770918,1763933440765,-596.94386131,0.00038356,8]
[394770919,1763933440776,-500.0,0.00038356,8]
[394770920,1763933440787,-500.0,0.00038356,8]
[394770921,1763933440797,-500.0,0.00038356,8]
[394770922,1763933440808,-263.31592918,0.00038356,2]
[394770923,1763933440818,-4298.56892222,0.00038461,2]
[394770924,1763933440828,-171.46,0.00038541,2]
[394770925,1763933440839,-654.38098081,0.0003855,2]
[394770926,1763933440850,-210.40136351,0.0003862,4]
[394770927,1763933440862,-1000.0,0.00038628,3]
[394770928,1763933440873,-287.38081911,0.0003863,8]
[394770929,1763933440887,-500.0,0.0003863,8]
[394770930,1763933440898,-500.0,0.0003863,8]
[394770931,1763933440908,-500.0,0.0003863,8]
[394770932,1763933440918,-500.0,0.0003863,8]
[394770933,1763933440928,-500.0,0.0003863,8]
[394770934,1763933440939,-500.0,0.0003863,8]
[394770935,1763933440949,-500.0,0.0003863,8]
[394770936,1763933440959,-500.0,0.0003863,8]
[394770937,1763933440969,-500.0,0.0003863,8]
[394770938,1763933440980,-500.0,0.0003863,8]
[394770939,1763933440990,-500.0,0.0003863,8]
[394770940,1763933441000,-373.70897806,0.0003863,8]
[394770941,1763933441010,-500.0,0.0003863,8]
[394770942,1763933441020,-500.0,0.0003863,8]
[394770943,1763933441029,-500.0,0.0003863,8]
[394770944,1763933441039,-500.0,0.0003863,8]
[394770945,1763933441050,-500.0,0.0003863,8]
[394770946,1763933441060,-500.0,0.0003863,8]
[394770947,1763933441071,-500.0,0.0003863,8]
[394770948,1763933441081,-500.0,0.0003863,8]
[394770949,1763933441100,-500.0,0.0003863,8]
[394770950,1763933441112,-500.0,0.0003863,8]
[394770951,1763933441123,-597.40461567,0.0003863,8]
[394770952,1763933441137,-500.0,0.0003863,8]
[394770953,1763933441150,-551.61,0.0003863,8]
[394770954,1763933441162,-500.0,0.0003863,8]
[394770955,1763933441175,-500.0,0.0003863,8]
[394770956,1763933441580,-500.0,0.0003863,8]
[394770957,1763933441598,-500.0,0.0003863,8]
[394770958,1763933441613,-500.0,0.0003863,8]
[394770959,1763933441626,-500.0,0.0003863,8]
[394770960,1763933441635,-881.80918785,0.0003863,2]
[394770961,1763933441645,-500.0,0.00038673,5]
[394770962,1763933441655,-500.0,0.00038673,5]
[394770963,1763933441665,-4298.56892222,0.00038766,2]
[394770964,1763933441674,-2054.56225385,0.00038799,30]
[394770965,1763933441683,-162.9711702,0.00038804,15]
[394770966,1763933441692,-5000.0,0.00038804,30]
[394770967,1763933441702,-654.38098081,0.00038844,2]
[394770968,1763933441711,-500.0,0.00038875,5]
[394770969,1763933441724,-500.0,0.00038875,5]
[394770970,1763933441733,-500.0,0.00038875,5]
[394770971,1763933441743,-500.0,0.00038875,5]
[394770972,1763933441752,-500.0,0.00038875,5]
[394770973,1763933441761,-532.78363872,0.00038875,5]
[394770974,1763933441771,-501.83220952,0.00038875,5]
[394770975,1763933441780,-500.0,0.00038875,5]
[394770976,1763933441789,-500.0,0.00038875,5]
[394770977,1763933441798,-200.7144154,0.00038875,5]
[394770978,1763933441808,-500.0,0.00038875,3]
[394770979,1763933441817,-500.0,0.00038875,5]
[394770980,1763933441827,-277.792036,0.00038875,5]
[394770981,1763933441836,-500.0,0.00038875,2]
[394770982,1763933441845,-500.0,0.00038893,8]
[394770983,1763933441854,-500.0,0.00038893,8]
[394770984,1763933441868,-500.0,0.00038893,8]
[394770985,1763933441877,-500.0,0.00038893,8]
[394770986,1763933441886,-500.0,0.00038893,8]
[394770987,1763933441895,-500.0,0.00038893,8]
[394770988,1763933441906,-587.95,0.00038893,8]
[394770989,1763933441915,-500.0,0.00038893,8]
[394770990,1763933441924,-500.0,0.00038893,8]
[394770991,1763933441934,-500.0,0.00038893,8]
[394770992,1763933441943,-500.0,0.00038893,8]
[394770993,1763933441952,-500.0,0.00038893,8]
[394770994,1763933441961,-500.0,0.00038893,8]
[394770995,1763933441970,-500.0,0.00038893,8]
[394770996,1763933441979,-500.0,0.00038893,8]
[394770997,1763933441988,-500.0,0.00038893,8]
[394770998,1763933441997,-500.0,0.00038893,8]
[394770999,1763933442007,-500.0,0.00038893,8]
[394771000,1763933442015,-500.0,0.00038893,8]
[394771001,1763933442024,-500.0,0.00038893,8]
[394771002,1763933442033,-500.0,0.00038893,8]
[394771003,1763933442043,-500.0,0.00038893,8]
[394771004,1763933442051,-500.0,0.00038893,8]
[394771005,1763933442060,-500.0,0.00038893,8]
[394771006,1763933442069,-500.0,0.00038893,8]
[394771007,1763933442078,-500.0,0.00038893,8]
[394771008,1763933442087,-500.0,0.00038893,8]
[394771009,1763933442096,-500.0,0.00038893,8]
[394771010,1763933442105,-420.80272702,0.00038893,4]
[394771011,1763933442118,-4838.68,0.00038893,2]
[394771012,1763933442127,-500.0,0.00038902,2]
[394771013,1763933442136,-500.0,0.00038903,8]
[394771014,1763933442145,-500.0,0.00038903,8]
[394771015,1763933442154,-500.0,0.00038903,8]
[394771016,1763933442163,-500.0,0.00038903,8]
[394771017,1763933442172,-500.0,0.00038903,8]
[394771018,1763933442182,-500.0,0.00038903,8]
[394771019,1763933442191,-500.0,0.00038903,8]
[394771020,1763933442200,-500.0,0.00038903,8]
[394771021,1763933442209,-500.0,0.00038903,8]
[394771022,1763933442219,-500.0,0.00038903,8]
[394771023,1763933442228,-500.0,0.00038903,8]
[394771024,1763933442238,-500.0,0.00038903,8]
[394771025,1763933442247,-500.0,0.00038903,8]
[394771026,1763933442257,-500.0,0.00038903,8]
[394771027,1763933442266,-500.0,0.00038903,8]
[394771028,1763933442277,-500.0,0.00038903,8]
[394771029,1763933442287,-500.0,0.00038903,8]
[394771030,1763933442296,-500.0,0.00038903,8]
[394771031,1763933442306,-500.0,0.00038903,8]
[394771032,1763933442315,-500.0,0.00038903,8]
[394771033,1763933442324,-500.0,0.00038903,8]
[394771034,1763933442334,-500.0,0.00038903,8]
[394771035,1763933442343,-500.0,0.00038903,8]
[394771036,1763933442352,-500.0,0.00038903,8]
[394771037,1763933442361,-500.0,0.00038903,8]
[394771038,1763933442371,-2788.3,0.00038903,8]
[394771039,1763933442380,-500.0,0.00038903,8]
[394771040,1763933442390,-500.0,0.00038903,8]
[394771041,1763933442400,-500.0,0.00038903,8]
[394771042,1763933442409,-500.0,0.00038903,8]
[394771043,1763933442418,-500.0,0.00038903,8]
[394771044,1763933442427,-727.82,0.00038903,8]
[394771045,1763933442437,-500.0,0.00038903,8]
[394771046,1763933442447,-500.0,0.00038903,8]
[394771047,1763933442456,-500.0,0.00038903,8]
[394771048,1763933442466,-500.0,0.00038903,8]
[394771049,1763933442476,-500.0,0.00038903,8]
[394771050,1763933442486,-500.0,0.00038903,8]
[394771051,1763933442500,-725.13,0.00038903,8]
[394771052,1763933442509,-500.0,0.00038903,8]
[394771053,1763933442518,-1000.0,0.00038903,8]
[394771054,1763933442527,-500.0,0.00038903,8]
[394771055,1763933442538,-500.0,0.00038903,8]
[394771056,1763933442547,-500.0,0.00038903,8]
[394771057,1763933442557,-500.0,0.00038903,8]
[394771058,1763933442566,-500.0,0.00038903,8]
[394771059,1763933442575,-500.0,0.00038903,2]
[394771060,1763933442584,-249.90525018,0.00038903,8]
[394771061,1763933442594,-500.0,0.00038903,8]
[394771062,1763933442603,-500.0,0.00038903,8]
[394771063,1763933442614,-2515.4,0.00038903,8]
[394771064,1763933442624,-500.0,0.00038903,8]
[394771065,1763933442633,-500.0,0.00038903,8]
[394771066,1763933442642,-500.0,0.00038903,8]
[394771067,1763933442651,-500.0,0.00038903,8]
[394771068,1763933442660,-500.0,0.00038903,8]
[394771069,1763933442670,-1000.0,0.00038903,3]
[394771070,1763933442679,-500.0,0.00038903,2]
[394771071,1763933442688,-524.73,0.00038903,8]
[394771072,1763933442697,-500.0,0.00038903,8]
[394771073,1763933442706,-150.07264217,0.00038903,8]
[394771074,1763933442715,-500.0,0.00038903,8]
[394771075,1763933442724,-500.0,0.00038903,8]
[394771076,1763933442734,-941.13,0.00038903,8]
[394771077,1763933442744,-500.0,0.00038903,8]
[394771078,1763933442754,-761.3,0.00038903,8]
[394771079,1763933442763,-500.0,0.00038903,8]
[394771080,1763933442773,-500.0,0.00038903,8]
[394771081,1763933442783,-500.0,0.00038903,8]
[394771082,1763933442792,-500.0,0.00038903,8]
[394771083,1763933442802,-500.0,0.00038903,8]
[394771084,1763933442811,-801.51,0.00038903,8]
[394771085,1763933442820,-500.0,0.00038903,8]
[394771086,1763933442831,-693.68,0.00038903,8]
[394771087,1763933442841,-500.0,0.00038903,8]
[394771088,1763933442851,-500.0,0.00038903,8]
[394771089,1763933442863,-500.0,0.00038903,8]
[394771091,1763933442872,-500.0,0.00038903,8]
[394771092,1763933442885,-500.0,0.00038903,8]
[394771093,1763933442895,-500.0,0.00038903,8]
[394771094,1763933442906,-500.0,0.00038904,8]
[394771095,1763933442915,-500.0,0.00038904,8]
[394771096,1763933442924,-500.0,0.00038904,8]
[394771097,1763933442936,-526.2984519,0.00038904,8]
[394771098,1763933442945,-500.0,0.00038904,8]
[394771099,1763933442955,-500.0,0.00038904,8]
[394771100,1763933442965,-500.0,0.00038904,8]
[394771101,1763933442975,-500.0,0.00038904,8]
[394771102,1763933442986,-500.0,0.00038904,8]
[394771103,1763933442996,-500.0,0.00038904,14]
[394771104,1763933443008,-500.0,0.00038904,14]
[394771105,1763933443018,-500.0,0.00038904,14]
[394771106,1763933443027,-500.0,0.00038904,14]
[394771107,1763933443037,-500.0,0.00038904,14]
[394771108,1763933443046,-500.0,0.00038904,14]
[394771109,1763933443056,-500.0,0.00038904,14]
[394771110,1763933443065,-500.0,0.00038904,14]
[394771111,1763933443074,-500.0,0.00038904,8]
[394771112,1763933443084,-492.18,0.00038904,8]
[394771113,1763933443094,-500.0,0.00038904,8]
[394771114,1763933443104,-500.0,0.00038904,8]
[394771115,1763933443113,-500.0,0.00038904,8]
[394771116,1763933443123,-500.0,0.00038904,8]
[394771117,1763933443131,-500.0,0.00038904,8]
[394771118,1763933443141,-500.0,0.00038904,8]
[394771119,1763933443150,-500.0,0.00038904,8]
[394771120,1763933443159,-500.0,0.00038904,8]
[394771121,1763933443168,-500.0,0.00038904,8]
[394771122,1763933443178,-500.0,0.00038904,8]
[394771123,1763933443188,-500.0,0.00038904,8]
[394771124,1763933443198,-551.61,0.00038904,8]
[394771125,1763933443207,-500.0,0.00038904,8]
[394771126,1763933443216,-500.0,0.00038904,8]
[394771127,1763933443226,-500.0,0.00038904,8]
[394771128,1763933443235,-500.0,0.00038904,8]
[394771129,1763933443244,-500.45369655,0.00038904,8]
[394771130,1763933443256,-500.0,0.00038904,8]
[394771131,1763933443265,-4298.56892222,0.00039071,2]
[394771132,1763933443277,-156.24154383,0.00039088,8]
[394771133,1763933443286,-654.38098081,0.00039137,2]
[394771134,1763933443296,-500.0,0.00039167,8]
[394771135,1763933443306,-500.0,0.00039167,8]
[394771136,1763933443316,-500.0,0.00039167,8]
[394771137,1763933443326,-500.0,0.00039167,8]
[394771138,1763933443336,-500.0,0.00039167,8]
[394771139,1763933443345,-587.95,0.00039167,8]
[394771140,1763933443355,-500.0,0.00039167,8]
[394771141,1763933443364,-500.0,0.00039167,8]
[394771142,1763933443374,-500.0,0.00039167,8]
[394771143,1763933443384,-579.2280545,0.00039167,8]
[394771144,1763933443393,-500.0,0.00039167,8]
[394771145,1763933443402,-500.0,0.00039167,8]
[394771146,1763933443411,-500.0,0.00039167,8]
[394771147,1763933443421,-500.0,0.00039167,8]
[394771148,1763933443431,-500.0,0.00039167,8]
[394771149,1763933443440,-500.0,0.00039167,8]
[394771150,1763933443449,-500.0,0.00039167,8]
[394771151,1763933443459,-500.0,0.00039167,8]
[394771152,1763933443468,-500.0,0.00039167,8]
[394771153,1763933443478,-500.0,0.00039167,8]
[394771154,1763933443487,-500.0,0.00039167,8]
[394771155,1763933443497,-500.0,0.00039167,8]
[394771156,1763933443507,-500.0,0.00039167,8]
[394771157,1763933443516,-500.0,0.00039167,8]
[394771158,1763933443526,-500.0,0.00039167,8]
[394771159,1763933443536,-500.0,0.00039167,8]
[394771160,1763933443546,-514.97331604,0.00039168,4]
[394771161,1763933443555,-896.15879611,0.00039177,30]
[394771162,1763933443564,-500.0,0.00039177,8]
[394771163,1763933443573,-500.0,0.00039177,8]
[394771164,1763933443582,-500.0,0.00039177,8]
[394771165,1763933443592,-500.0,0.00039177,8]
[394771166,1763933443601,-500.0,0.00039177,8]
[394771167,1763933443611,-500.0,0.00039177,8]
[394771168,1763933443621,-500.0,0.00039177,8]
[394771169,1763933443631,-500.0,0.00039177,8]
[394771170,1763933443640,-500.0,0.00039177,8]
[394771171,1763933443649,-500.0,0.00039177,8]
[394771172,1763933443658,-500.0,0.00039177,8]
[394771173,1763933443668,-500.0,0.00039177,8]
[394771174,1763933443678,-500.0,0.00039177,8]
[394771175,1763933443688,-439.36417627,0.00039177,8]
[394771176,1763933443697,-500.0,0.00039177,8]
[394771177,1763933443707,-500.0,0.00039177,8]
[394771178,1763933443716,-500.0,0.00039177,8]
[394771179,1763933443726,-500.0,0.00039177,8]
[394771180,1763933443736,-500.0,0.00039177,8]
[394771181,1763933443745,-500.0,0.00039177,8]
[394771182,1763933443755,-500.0,0.00039177,8]
[394771183,1763933443764,-500.0,0.00039177,8]
[394771184,1763933443773,-500.0,0.00039177,8]
[394771185,1763933443783,-500.0,0.00039177,8]
[394771186,1763933443792,-500.0,0.00039177,8]
[394771187,1763933443802,-2788.3,0.00039177,8]
[394771188,1763933443811,-500.0,0.00039177,8]
[394771189,1763933443820,-500.0,0.00039177,8]
[394771190,1763933443829,-500.0,0.00039177,8]
[394771191,1763933443839,-500.0,0.00039177,8]
[394771192,1763933443848,-500.0,0.00039177,8]
[394771193,1763933443859,-727.82,0.00039177,8]
[394771194,1763933443870,-500.0,0.00039177,8]
[394771195,1763933443879,-500.0,0.00039177,8]
[394771196,1763933443889,-500.0,0.00039177,8]
[394771197,1763933443898,-500.0,0.00039177,8]
[394771198,1763933443909,-500.0,0.00039177,8]
[394771199,1763933443920,-725.13,0.00039177,8]
[394771200,1763933443930,-500.0,0.00039177,8]
[394771201,1763933443940,-1000.0,0.00039177,8]
[394771202,1763933443949,-500.0,0.00039177,8]
[394771203,1763933443958,-500.0,0.00039177,8]
[394771204,1763933443967,-500.0,0.00039177,8]
[394771205,1763933443975,-500.0,0.00039177,8]
[394771206,1763933443984,-500.0,0.00039177,8]
[394771207,1763933443994,-500.0,0.00039177,8]
[394771208,1763933444004,-500.0,0.00039177,8]
[394771209,1763933444014,-2515.4,0.00039177,8]
[394771210,1763933444023,-500.0,0.00039177,8]
[394771211,1763933444033,-500.0,0.00039177,8]
[394771212,1763933444042,-500.0,0.00039177,8]
[394771213,1763933444052,-500.0,0.00039177,8]
[394771214,1763933444062,-500.0,0.00039177,8]
[394771215,1763933444071,-500.0,0.00039177,2]
[394771216,1763933444081,-524.73,0.00039177,8]
[394771217,1763933444090,-500.0,0.00039177,8]
[394771218,1763933444100,-500.0,0.00039177,8]
[394771219,1763933444110,-500.0,0.00039177,8]
[394771220,1763933444118,-941.13,0.00039177,8]
[394771221,1763933444128,-500.0,0.00039177,8]
[394771222,1763933444138,-761.3,0.00039177,8]
[394771223,1763933444147,-500.0,0.00039177,8]
[394771224,1763933444157,-500.0,0.00039177,8]
[394771225,1763933444167,-500.0,0.00039177,8]
[394771226,1763933444176,-500.0,0.00039177,8]
[394771227,1763933444186,-500.0,0.00039177,8]
[394771228,1763933444195,-801.51,0.00039177,8]
[394771229,1763933444204,-500.0,0.00039177,8]
[394771230,1763933444214,-500.0,0.00039177,8]
[394771231,1763933444224,-693.68,0.00039177,8]
[394771232,1763933444234,-500.0,0.00039177,8]
[394771233,1763933444243,-500.0,0.00039177,8]
[394771234,1763933444253,-500.0,0.00039177,8]
[394771235,1763933444262,-500.0,0.00039177,8]
[394771236,1763933444271,-500.0,0.00039177,8]
[394771237,1763933444281,-284.08537496,0.00039178,8]